bitfinex/quotes_SOLUSD_20250612
["timestamp","ask_amount","ask_price","bid_price","bid_amount"]
[1749742391988,149.1,158.2,158.19,31.82864315]
[1749742392310,18.64964886,158.26,158.19,31.82864315]
[1749742392311,26.0,158.21,158.19,31.82864315]
[1749742392603,180.92864315,158.26,158.2,31.82864315]
[1749742392604,6.32024753,158.23,158.2,31.82864315]
[1749742392777,26.0,158.21,158.2,31.82864315]
[1749742393394,12.39964957,158.24,158.2,31.82864315]
[1749742393597,12.39964957,158.24,158.23,31.82864315]
[1749742394106,149.1,158.26,158.23,31.82864315]
[1749742394312,59.83381142,158.32,158.25,31.82864315]
[1749742394490,53.70022179,158.32,158.28,31.82864315]
[1749742394795,26.0,158.29,158.28,31.82864315]
[1749742395003,32.31751847,158.29,158.28,31.82864315]
[1749742395184,26.0,158.29,158.28,31.82864315]
[1749742395393,6.31552355,158.34,158.28,31.82864315]
[1749742395588,6.31552355,158.34,158.31,31.82864315]
[1749742395794,6.31552355,158.34,158.32,31.82864315]
[1749742395983,26.0,158.32,158.31,31.82864315]
[1749742396189,6.31552355,158.34,158.31,31.82864315]
[1749742396393,6.31552355,158.34,158.32,31.82864315]
[1749742396604,31.82864315,158.33,158.27,26.82]
[1749742396804,6.31632137,158.32,158.29,31.82864315]
[1749742397710,38.14496452,158.32,158.27,31.82864315]
[1749742397893,26.0,158.31,158.28,31.82864315]
[1749742398283,26.0,158.3,158.28,31.82864315]
[1749742399012,32.31711939,158.3,158.27,31.82864315]
[1749742400913,79.93856102,158.3,158.24,33.33974315]
[1749742401095,31.82864315,158.28,158.23,31.82864315]
[1749742401408,31.82864315,158.26,158.21,31.82864315]
[1749742401917,31.82864315,158.26,158.22,31.82864315]
[1749742402708,2.30154095,158.25,158.22,31.82864315]
[1749742402926,8.62141663,158.24,158.2,7.7425]
[1749742403124,2.30107454,158.23,158.2,1.5798]
[1749742403406,38.14851883,158.24,158.2,1.5798]
[1749742403709,2.30042315,158.23,158.22,31.82864315]
[1749742403911,2.30055054,158.23,158.22,31.82864315]
[1749742404121,2.30054335,158.23,158.22,31.82864315]
[1749742404292,31.82864315,158.26,158.22,31.82864315]
[1749742404495,2.30047144,158.25,158.22,31.82864315]
[1749742404689,2.30038339,158.24,158.22,31.82864315]
[1749742404899,2.30035752,158.23,158.22,31.82864315]
[1749742405089,2.30040271,158.23,158.22,31.82864315]
[1749742405291,6.31882337,158.26,158.22,31.82864315]
[1749742405489,2.30051328,158.25,158.21,26.8]
[1749742405714,6.31791761,158.28,158.24,31.82864315]
[1749742405913,34.12952744,158.27,158.22,31.82864315]
[1749742406112,2.3006582,158.26,158.23,31.82864315]
[1749742406302,2.30072834,158.25,158.23,31.82864315]
[1749742406611,53.94135479,158.28,158.23,31.82864315]
[1749742406790,2.30064231,158.27,158.25,31.82864315]
[1749742407114,6.31766653,158.29,158.26,31.82864315]
[1749742407284,6.31766653,158.29,158.28,31.82864315]
[1749742407483,8.61883209,158.29,158.28,31.82864315]
[1749742407816,8.61889078,158.29,158.28,31.82864315]
[1749742408189,6.31766653,158.29,158.28,31.82864315]
[1749742408390,6.31766653,158.29,158.28,35.22864315]
[1749742408712,26.0,158.32,158.28,35.22864315]
[1749742408895,8.61770242,158.31,158.28,35.22864315]
[1749742409097,2.30085802,158.3,158.28,3.4]
[1749742409308,2.30070643,158.29,158.28,3.4]
[1749742409490,34.12902789,158.29,158.28,3.4]
[1749742409693,58.11296629,158.29,158.21,31.82864315]
[1749742409909,58.11296629,158.29,158.2,7.9547]
[1749742409910,57.82864315,158.23,158.22,3.4]
[1749742410211,57.82864315,158.23,158.16,33.36084315]
[1749742410408,2.29906784,158.22,158.19,31.82864315]
[1749742410651,2.29924346,158.21,158.2,31.82864315]
[1749742410915,2.29925376,158.21,158.2,31.82864315]
[1749742411106,2.29898993,158.21,158.16,1.5322]
[1749742411416,6.32000186,158.23,158.2,45.68042072]
[1749742411726,6.31841623,158.27,158.22,45.68042072]
[1749742411914,6.31841623,158.27,158.26,45.68042072]
[1749742412090,8.61800296,158.27,158.25,45.68042072]
[1749742412289,8.61800296,158.27,158.21,26.8]
[1749742412290,6.31841623,158.27,158.26,45.68042072]
[1749742412522,8.61800736,158.27,158.26,45.68042072]
[1749742412722,26.0,158.28,158.26,45.68042072]
[1749742412892,2.29949995,158.27,158.25,1.5777]
[1749742413098,6.31632137,158.32,158.26,45.68042072]
[1749742413307,2.29935418,158.31,158.28,45.68042072]
[1749742413508,2.29943808,158.3,158.29,45.68042072]
[1749742413801,2.2995142,158.3,158.29,45.68042072]
[1749742414199,6.31632137,158.32,158.29,45.68042072]
[1749742414606,2.29953127,158.31,158.28,45.68042072]
[1749742414817,2.29955975,158.3,158.28,45.68042072]
[1749742415006,51.99674209,158.32,158.28,45.68042072]
[1749742415215,2.29945063,158.31,158.28,45.68042072]
[1749742415402,2.29945063,158.3,158.29,45.68042072]
[1749742415601,2.2995649,158.3,158.29,45.68042072]
[1749742415910,6.31632137,158.32,158.29,45.68042072]
[1749742416428,2.3001495,158.31,158.29,45.68042072]
[1749742416628,26.0,158.27,158.21,45.68042072]
[1749742416828,47.97991841,158.26,158.21,45.68042072]
[1749742417017,6.31991404,158.23,158.2,1.6501]
[1749742417427,6.31991404,158.23,158.2,47.33052072]
[1749742417602,6.31956075,158.24,158.21,45.68042072]
[1749742417803,6.31956075,158.24,158.2,74.09052072]
[1749742419009,6.31956075,158.24,158.21,45.68042072]
[1749742419216,6.31956075,158.24,158.2,28.4101]
[1749742419408,6.31956075,158.24,158.21,45.68042072]
[1749742420311,45.68042072,158.23,158.2,1.6501]
[1749742420726,45.68042072,158.25,158.2,47.33052072]
[1749742420929,6.31911505,158.26,158.23,45.68042072]
[1749742421436,32.31845121,158.27,158.24,45.68042072]
[1749742421641,6.31711939,158.3,158.26,45.68042072]
[1749742421930,51.99754011,158.3,158.26,45.68042072]
[1749742422427,45.68042072,158.27,158.24,26.74]
[1749742422635,45.68042072,158.28,158.23,45.68042072]
[1749742422817,45.68042072,158.28,158.24,45.68042072]
[1749742423009,77.99754011,158.3,158.25,45.68042072]
[1749742423211,6.31711939,158.3,158.26,45.68042072]
[1749742423411,6.31686834,158.31,158.27,45.68042072]
[1749742423915,51.99728906,158.31,158.26,45.68042072]
[1749742424115,51.99728906,158.31,158.25,45.68042072]
[1749742424116,45.68042072,158.3,158.25,45.68042072]
[1749742424317,45.68042072,158.28,158.22,18.64964886]
[1749742424524,45.68042072,158.28,158.23,72.44042072]
[1749742424733,45.68042072,158.29,158.25,45.68042072]
[1749742425032,51.99823244,158.29,158.25,45.68042072]
[1749742425733,45.68042072,158.29,158.23,26.76]
[1749742426042,51.99768862,158.3,158.26,45.68042072]
[1749742426215,6.3172679,158.3,158.26,45.68042072]
[1749742426412,51.99768862,158.3,158.25,72.42042072]
[1749742427029,51.99768862,158.3,158.25,26.74]
[1749742427209,45.68042072,158.29,158.25,26.74]
[1749742427410,45.68042072,158.26,158.22,45.68042072]
[1749742427612,45.68042072,158.27,158.22,72.40042072]
[1749742427915,45.68042072,158.27,158.23,45.68042072]
[1749742428445,45.68042072,158.28,158.24,45.68042072]
[1749742428643,45.68042072,158.27,158.22,72.40042072]
[1749742428845,45.68042072,158.26,158.22,45.68042072]
[1749742429352,6.31880196,158.26,158.22,45.68042072]
[1749742429639,51.99922268,158.26,158.21,45.68042072]
[1749742429820,26.0,158.28,158.25,45.68042072]
[1749742430012,51.99760686,158.3,158.25,45.68042072]
[1749742431032,51.99760686,158.3,158.23,72.40042072]
[1749742431033,45.68042072,158.28,158.23,72.40042072]
[1749742431535,51.99873752,158.27,158.23,72.40042072]
[1749742431921,51.99843964,158.28,158.24,45.68042072]
[1749742432122,6.31801892,158.28,158.24,45.68042072]
[1749742432912,6.31801892,158.28,158.25,45.68042072]
[1749742433179,6.31763972,158.29,158.23,26.72]
[1749742433515,6.31763972,158.29,158.25,28.73140918]
[1749742433934,35.0490489,158.29,158.24,28.73140918]
[1749742434323,28.73140918,158.28,158.23,55.45140918]
[1749742434615,28.73140918,158.28,158.24,28.73140918]
[1749742435236,6.31725875,158.3,158.26,28.73140918]
[1749742435443,35.04866793,158.3,158.26,28.73140918]
[1749742435821,35.04866793,158.3,158.25,28.73140918]
[1749742436114,61.04829776,158.31,158.26,28.73140918]
[1749742436331,32.31688858,158.31,158.27,28.73140918]
[1749742436634,18.64964886,158.37,158.29,1.6586]
[1749742436635,6.4774,158.36,158.29,1.6586]
[1749742436821,6.31472594,158.36,158.32,28.73140918]
[1749742437868,6.31472594,158.36,158.29,1.6586]
[1749742438047,6.31472594,158.36,158.31,28.73140918]
[1749742438951,22.10154079,158.36,158.29,1.6586]
[1749742439149,22.10154079,158.36,158.3,28.73140918]
[1749742439375,22.10154079,158.36,158.31,28.73140918]
[1749742439542,6.31472594,158.36,158.31,28.73140918]
[1749742439742,6.31472594,158.36,158.32,28.73140918]
[1749742439961,61.04589467,158.37,158.33,28.73140918]
[1749742440164,6.31448549,158.37,158.34,28.73140918]
[1749742440440,28.73140918,158.36,158.31,55.45140918]
[1749742440720,6.31448549,158.37,158.31,26.72]
[1749742440985,6.31448549,158.37,158.31,55.45140918]
[1749742441787,28.73140918,158.36,158.31,55.45140918]
[1749742442659,28.73140918,158.34,158.29,1.6586]
[1749742442982,22.38307297,158.38,158.26,28.73140918]
[1749742442983,28.73140918,158.3,158.26,28.73140918]
[1749742443149,28.73140918,158.31,158.26,28.73140918]
[1749742443464,28.73140918,158.3,158.25,1.6315]
[1749742443660,28.73140918,158.29,158.25,1.6315]
[1749742443855,6.3183168,158.27,158.25,1.6315]
[1749742444061,6.3183168,158.27,158.23,28.73140918]
[1749742444062,35.04972598,158.27,158.22,28.73140918]
[1749742444253,6.3183168,158.27,158.24,28.73140918]
[1749742444456,6.3183168,158.27,158.23,28.73140918]
[1749742445463,6.3183168,158.27,158.24,28.73140918]
[1749742445868,35.04898756,158.29,158.25,28.73140918]
[1749742446172,6.31726932,158.3,158.26,28.73140918]
[1749742446487,28.73140918,158.28,158.23,28.73140918]
[1749742446674,48.1100678,158.3,158.23,28.73140918]
[1749742446977,28.73140918,158.28,158.24,28.73140918]
[1749742447182,28.73140918,158.29,158.24,28.73140918]
[1749742447856,6.31791761,158.28,158.24,28.73140918]
[1749742448757,35.04932679,158.28,158.22,26.7]
[1749742448985,28.73140918,158.27,158.22,28.73140918]
[1749742449351,28.73140918,158.26,158.22,28.73140918]
[1749742449754,28.73140918,158.27,158.22,28.73140918]
[1749742449951,26.0,158.3,158.24,28.73140918]
[1749742450155,6.31688847,158.31,158.28,28.73140918]
[1749742450356,28.73140918,158.29,158.24,26.72]
[1749742450672,28.73140918,158.28,158.23,28.73140918]
[1749742452056,22.10868936,158.31,158.22,28.73140918]
[1749742452057,35.04972598,158.27,158.22,28.73140918]
[1749742452262,28.73140918,158.26,158.21,30.33410918]
[1749742452888,6.3183168,158.27,158.22,28.73140918]
[1749742453183,28.73140918,158.24,158.21,1.6027]
[1749742453479,28.73140918,158.24,158.18,26.72]
[1749742453785,28.73140918,158.24,158.17,1.6149]
[1749742453971,6.31991404,158.23,158.19,28.73140918]
[1749742454883,6.31991404,158.23,158.18,28.73140918]
[1749742454884,28.73140918,158.22,158.18,28.73140918]
[1749742455085,50.85110834,158.23,158.18,28.73140918]
[1749742455260,28.73140918,158.22,158.18,28.73140918]
[1749742456058,41.79750645,158.26,158.2,28.73140918]
[1749742456294,6.31911532,158.25,158.22,28.73140918]
[1749742456473,6.31911532,158.25,158.21,28.73140918]
[1749742456659,6.31880454,158.26,158.23,28.73140918]
[1749742457152,6.31845398,158.27,158.23,28.73140918]
[1749742457355,6.31672035,158.31,158.26,28.73140918]
[1749742457553,6.31672035,158.31,158.25,1.5611]
[1749742457554,6.31672035,158.31,158.29,28.73140918]
[1749742457781,6.31672035,158.31,158.28,28.73140918]
[1749742458510,6.31672035,158.31,158.29,28.73140918]
[1749742458799,6.31592244,158.33,158.3,28.73140918]
[1749742458961,15.78462806,158.39,158.32,28.73140918]
[1749742459164,6.31392852,158.38,158.36,28.73140918]
[1749742459374,6.31392852,158.38,158.35,28.73140918]
[1749742459695,6.31392852,158.38,158.31,26.72]
[1749742459864,6.31392852,158.38,158.34,28.73140918]
[1749742460064,6.31392852,158.38,158.31,26.72]
[1749742460387,22.09874983,158.38,158.32,28.73140918]
[1749742460578,22.09874983,158.38,158.33,28.73140918]
[1749742460889,50.83015901,158.38,158.33,28.73140918]
[1749742461087,28.73140918,158.37,158.33,28.73140918]
[1749742461277,50.83015901,158.38,158.33,28.73140918]
[1749742462590,35.0453377,158.38,158.33,28.73140918]
[1749742462773,6.31392852,158.38,158.34,28.73140918]
[1749742462978,35.0453377,158.38,158.34,28.73140918]
[1749742463368,35.0453377,158.38,158.31,26.72]
[1749742463369,28.73140918,158.37,158.33,28.73140918]
[1749742463568,28.73140918,158.37,158.31,26.72]
[1749742463770,35.0453377,158.38,158.33,28.73140918]
[1749742463959,35.0453377,158.38,158.34,28.73140918]
[1749742464163,6.31392852,158.38,158.34,28.73140918]
[1749742464373,6.31364711,158.39,158.37,28.73140918]
[1749742464566,6.31193587,158.43,158.38,28.73140918]
[1749742464791,32.31193587,158.43,158.4,28.73140918]
[1749742464963,6.31165143,158.44,158.41,28.73140918]
[1749742465383,32.31165143,158.44,158.41,28.73140918]
[1749742465803,28.73140918,158.43,158.36,18.64964886]
[1749742465971,28.73140918,158.43,158.38,28.73140918]
[1749742466307,48.09049515,158.44,158.38,28.73140918]
[1749742466459,76.82190433,158.44,158.39,28.73140918]
[1749742466664,61.04306061,158.44,158.35,26.7]
[1749742466897,26.0,158.41,158.39,28.73140918]
[1749742467875,26.0,158.42,158.38,28.73140918]
[1749742468078,26.0,158.42,158.39,28.73140918]
[1749742468564,26.0,158.32,158.22,28.73140918]
[1749742468871,28.73140918,158.26,158.21,28.73140918]
[1749742469071,26.14216157,158.29,158.2,1.5584]
[1749742469072,28.73140918,158.25,158.2,30.28980918]
[1749742469863,26.0,158.28,158.21,28.73140918]
[1749742470067,28.73140918,158.27,158.22,28.73140918]
[1749742470485,54.73140918,158.27,158.22,28.73140918]
[1749742471283,71.66930525,158.27,158.22,45.66930525]
[1749742472899,77.98765979,158.27,158.22,45.66930525]
[1749742474186,51.98813311,158.26,158.21,45.66930525]
[1749742474589,26.0,158.27,158.23,45.66930525]
[1749742474913,26.0,158.28,158.24,45.66930525]
[1749742475579,71.66930525,158.28,158.21,18.64964886]
[1749742475780,71.66930525,158.28,158.23,45.66930525]
[1749742476500,77.98724811,158.28,158.23,45.66930525]
[1749742477192,32.31794286,158.28,158.24,45.66930525]
[1749742478592,26.0,158.28,158.24,45.66930525]
[1749742478900,26.0,158.28,158.21,18.64964886]
[1749742478901,32.31799032,158.28,158.21,18.64964886]
[1749742479110,32.31799032,158.28,158.24,45.66930525]
[1749742479307,32.31765299,158.29,158.24,45.66930525]
[1749742479502,26.0,158.29,158.26,45.66930525]
[1749742480012,181.41636445,158.32,158.28,45.66930525]
[1749742480317,155.41636445,158.32,158.28,45.66930525]
[1749742480497,155.41641013,158.32,158.28,45.66930525]
[1749742480700,149.1,158.32,158.28,45.66930525]
[1749742480911,149.1,158.32,158.29,45.66930525]
[1749742481316,6.3153923,158.35,158.3,45.66930525]
[1749742481615,32.3153923,158.35,158.31,45.66930525]
[1749742483723,161.61486592,158.36,158.32,45.66930525]
[1749742484024,155.41472594,158.36,158.35,45.66930525]
[1749742484201,149.1,158.36,158.35,45.66930525]
[1749742486218,183.5303715,158.43,158.35,45.66930525]
[1749742486401,0.14216157,158.41,158.37,45.66930525]
[1749742486588,26.0,158.39,158.38,45.66930525]
[1749742487211,149.1,158.43,158.38,45.66930525]
[1749742487408,149.1,158.43,158.4,45.66930525]
[1749742487591,26.0,158.41,158.4,45.66930525]
[1749742487807,26.0,158.41,158.37,1.5902]
[1749742488006,26.0,158.4,158.34,26.76]
[1749742488205,26.0,158.4,158.38,45.66930525]
[1749742488415,155.41206708,158.43,158.39,45.66930525]
[1749742488616,0.28432314,158.42,158.39,45.66930525]
[1749742488806,6.31273278,158.41,158.39,45.66930525]
[1749742489429,6.31273278,158.41,158.38,45.66930525]
[1749742489900,6.3123343,158.42,158.38,45.66930525]
[1749742490422,6.3123343,158.42,158.34,26.76]
[1749742490610,6.3123343,158.42,158.38,45.66930525]
[1749742491338,31.87862716,158.41,158.36,31.87862716]
[1749742491504,22.09317005,158.42,158.36,31.87862716]
[1749742491702,53.97179721,158.42,158.34,26.76]
[1749742491920,53.97179721,158.42,158.37,31.87862716]
[1749742492830,31.87862716,158.39,158.32,1.5902]
[1749742493013,32.31313131,158.4,158.36,31.87862716]
[1749742493212,32.1629503,158.41,158.38,31.87862716]
[1749742493213,26.0,158.39,158.38,31.87862716]
[1749742494119,6.31281085,158.41,158.38,31.87862716]
[1749742494327,32.31228184,158.43,158.4,31.87862716]
[1749742494533,12.51167453,158.44,158.4,31.87862716]
[1749742494725,8.6158924,158.44,158.4,31.87862716]
[1749742494929,8.61589285,158.44,158.4,31.87862716]
[1749742495404,38.19030169,158.44,158.39,31.87862716]
[1749742495808,38.19030169,158.44,158.37,26.72]
[1749742496032,38.19030169,158.44,158.39,31.87862716]
[1749742496529,38.19030169,158.44,158.37,26.72]
[1749742496713,38.19030169,158.44,158.34,26.0]
[1749742496714,31.87862716,158.4,158.32,1.5902]
[1749742496921,6.31352989,158.39,158.36,31.87862716]
[1749742497127,6.31323239,158.4,158.37,31.87862716]
[1749742498031,26.0,158.4,158.39,31.87862716]
[1749742498234,155.41248448,158.42,158.39,31.87862716]
[1749742499243,32.31205333,158.43,158.4,31.87862716]
[1749742499732,32.31205333,158.43,158.39,31.87862716]
[1749742500236,32.31205333,158.43,158.41,31.87862716]
[1749742500443,32.31205333,158.43,158.4,31.87862716]
[1749742500612,32.31205333,158.43,158.39,31.87862716]
[1749742500823,6.31313131,158.4,158.36,31.87862716]
[1749742501230,6.31313131,158.4,158.34,26.7]
[1749742501231,38.19175847,158.4,158.34,26.7]
[1749742501438,38.19175847,158.4,158.35,31.87862716]
[1749742501744,6.31313131,158.4,158.36,31.87862716]
[1749742501921,6.31313131,158.4,158.37,31.87862716]
[1749742502241,6.31286743,158.41,158.38,31.87862716]
[1749742502418,32.31240766,158.42,158.39,31.87862716]
[1749742502825,26.0,158.42,158.39,31.87862716]
[1749742503021,6.31167966,158.44,158.41,31.87862716]
[1749742503434,6.31167966,158.44,158.4,31.87862716]
[1749742504152,213.28988482,158.45,158.41,31.87862716]
[1749742504338,213.28988482,158.45,158.4,31.87862716]
[1749742504745,175.1,158.45,158.41,1.5069]
[1749742504928,6.31088798,158.46,158.44,31.87862716]
[1749742505127,6.31088798,158.46,158.43,31.87862716]
[1749742505657,38.18951514,158.46,158.42,31.87862716]
[1749742506024,6.31088798,158.46,158.42,31.87862716]
[1749742506628,6.31088798,158.46,158.43,31.87862716]
[1749742506835,6.31088798,158.46,158.42,31.87862716]
[1749742507043,31.87862716,158.45,158.41,28.2069]
[1749742507345,31.87862716,158.45,158.41,1.5069]
[1749742507522,32.31049262,158.47,158.43,31.87862716]
[1749742507724,6.30954634,158.49,158.46,31.87862716]
[1749742507936,2.30522333,158.49,158.46,31.87862716]
[1749742508146,187.28792956,158.5,158.45,31.87862716]
[1749742508559,187.28792956,158.5,158.43,26.7]
[1749742508560,31.87862716,158.46,158.43,26.7]
[1749742508731,31.87862716,158.46,158.41,60.08552716]
[1749742509051,26.0,158.47,158.44,31.87862716]
[1749742509378,6.30969654,158.49,158.46,31.87862716]
[1749742509543,155.4092908,158.5,158.46,31.87862716]
[1749742510951,31.87862716,158.47,158.42,58.57862716]
[1749742511159,31.87862716,158.46,158.41,33.38552716]
[1749742511537,31.87862716,158.46,158.41,60.08552716]
[1749742511733,26.0,158.47,158.41,60.08552716]
[1749742511963,57.87862716,158.47,158.41,28.2069]
[1749742512253,31.87862716,158.46,158.41,60.08552716]
[1749742512457,31.87862716,158.46,158.41,33.38552716]
[1749742513158,6.31113916,158.45,158.42,31.87862716]
[1749742514645,6.31113916,158.45,158.41,1.5069]
[1749742514844,6.31113916,158.45,158.42,31.87862716]
[1749742515050,6.31088103,158.46,158.42,31.87862716]
[1749742515439,6.31088103,158.46,158.42,58.55862716]
[1749742516268,38.18950819,158.46,158.42,26.68]
[1749742516563,6.31088103,158.46,158.42,58.55862716]
[1749742518236,6.31088103,158.46,158.43,31.87862716]
[1749742518541,6.31088103,158.46,158.42,58.55862716]
[1749742518962,64.18911535,158.47,158.42,58.55862716]
[1749742519150,32.31048819,158.47,158.43,31.87862716]
[1749742519352,32.31048819,158.47,158.42,26.68]
[1749742519587,32.31048819,158.47,158.44,31.87862716]
[1749742519738,32.31048819,158.47,158.42,26.68]
[1749742520064,32.31048819,158.47,158.43,31.87862716]
[1749742521250,31.87862716,158.49,158.44,31.87862716]
[1749742521567,26.0,158.46,158.44,31.87862716]
[1749742521734,6.31020182,158.48,158.44,31.87862716]
[1749742521938,32.30970727,158.49,158.44,31.87862716]
[1749742522167,64.18833443,158.49,158.44,31.87862716]
[1749742522548,64.18833443,158.49,158.44,26.68]
[1749742522754,31.87862716,158.48,158.44,26.68]
[1749742523651,32.30970727,158.49,158.44,58.55862716]
[1749742523847,64.18833443,158.49,158.44,58.55862716]
[1749742524271,31.87862716,158.48,158.44,26.68]
[1749742524587,31.87862716,158.47,158.41,1.5069]
[1749742524746,31.87862716,158.47,158.43,26.68]
[1749742524943,64.18833443,158.49,158.45,31.87862716]
[1749742525157,31.87862716,158.48,158.43,26.68]
[1749742525473,64.18833443,158.49,158.44,31.87862716]
[1749742525846,32.30970727,158.49,158.44,31.87862716]
[1749742526051,64.18833443,158.49,158.44,31.87862716]
[1749742527366,31.87862716,158.48,158.44,31.87862716]
[1749742527744,6.31034265,158.47,158.43,58.55862716]
[1749742527946,6.31034265,158.47,158.44,31.87862716]
[1749742528168,6.31034265,158.47,158.43,58.55862716]
[1749742528780,38.18896981,158.47,158.41,1.5069]
[1749742528962,31.87862716,158.45,158.41,1.5069]
[1749742529164,31.87862716,158.44,158.41,1.5069]
[1749742529368,22.08619927,158.47,158.41,1.5069]
[1749742529563,31.87862716,158.46,158.41,33.38552716]
[1749742529977,6.31113916,158.45,158.41,33.38552716]
[1749742530173,6.31113916,158.45,158.41,1.5069]
[1749742530487,38.18976632,158.45,158.41,1.5069]
[1749742531897,6.31113916,158.45,158.41,1.5069]
[1749742532105,6.31113916,158.45,158.41,33.38552716]
[1749742533910,38.18976632,158.45,158.41,1.5069]
[1749742534116,6.30994447,158.48,158.43,31.87862716]
[1749742534300,164.87378997,158.5,158.45,31.87862716]
[1749742534301,6.30970708,158.49,158.45,31.87862716]
[1749742534489,6.30970708,158.49,158.43,26.68]
[1749742534814,6.30970708,158.49,158.45,31.87862716]
[1749742535197,6.30970708,158.49,158.43,26.68]
[1749742535198,6.30970708,158.49,158.46,31.87862716]
[1749742535412,6.30970708,158.49,158.45,31.87862716]
[1749742535783,6.30970708,158.49,158.43,26.68]
[1749742536004,155.4092998,158.5,158.46,31.87862716]
[1749742536199,155.4092998,158.5,158.47,31.87862716]
[1749742536510,149.1,158.5,158.47,31.87862716]
[1749742536813,26.0,158.51,158.48,31.87862716]
[1749742537000,26.0,158.51,158.49,31.87862716]
[1749742537210,6.3080685,158.53,158.49,31.87862716]
[1749742538088,6.3080685,158.53,158.46,26.68]
[1749742538089,38.18669566,158.53,158.48,31.87862716]
[1749742538498,181.40768535,158.54,158.49,26.68]
[1749742538705,187.28631251,158.54,158.49,58.55862716]
[1749742538918,187.28631251,158.54,158.49,26.68]
[1749742539225,155.40768535,158.54,158.5,31.87862716]
[1749742540413,187.28631251,158.54,158.49,58.55862716]
[1749742540608,31.87862716,158.53,158.49,26.68]
[1749742540921,155.40768535,158.54,158.47,1.6629]
[1749742540922,31.87862716,158.51,158.47,1.6629]
[1749742541138,171.17657648,158.54,158.47,28.3429]
[1749742541432,26.0,158.51,158.48,31.87862716]
[1749742542157,6.30850542,158.52,158.49,31.87862716]
[1749742542309,4.603598,158.53,158.5,31.87862716]
[1749742542514,181.40756301,158.54,158.51,31.87862716]
[1749742542712,4.60277681,158.53,158.51,31.87862716]
[1749742542914,155.40756301,158.54,158.51,31.87862716]
[1749742543833,26.0,158.56,158.53,31.87862716]
[1749742544434,180.97862716,158.59,158.54,31.87862716]
[1749742544729,13.21164804,158.58,158.54,31.87862716]
[1749742544926,4.6036434,158.57,158.54,31.87862716]
[1749742545130,187.28427237,158.59,158.55,31.87862716]
[1749742545831,187.28427237,158.59,158.54,26.66]
[1749742546048,155.40564521,158.59,158.55,31.87862716]
[1749742546242,187.28427237,158.59,158.55,31.87862716]
[1749742546548,38.18427237,158.59,158.55,31.87862716]
[1749742546754,6.30564521,158.59,158.55,31.87862716]
[1749742547257,38.18427237,158.59,158.54,26.66]
[1749742547456,38.18427237,158.59,158.55,31.87862716]
[1749742547661,26.0,158.6,158.57,31.87862716]
[1749742547957,180.97862716,158.63,158.58,31.87862716]
[1749742548140,175.1,158.63,158.59,31.87862716]
[1749742548337,181.4041009,158.63,158.59,31.87862716]
[1749742548546,175.1,158.63,158.6,31.87862716]
[1749742548742,149.1,158.63,158.6,31.87862716]
[1749742549034,15.75777513,158.66,158.62,31.87862716]
[1749742549035,6.30289232,158.66,158.62,31.87862716]
[1749742549341,6.30250425,158.67,158.63,19.06247578]
[1749742549540,48.05847576,158.67,158.62,26.66]
[1749742549846,19.06247578,158.64,158.6,26.66]
[1749742550056,19.06247578,158.62,158.58,26.66]
[1749742550267,6.30477271,158.61,158.55,1.5031]
[1749742550452,25.36724849,158.61,158.56,48.96247578]
[1749742550758,32.30477271,158.61,158.55,1.5031]
[1749742550960,19.06247578,158.59,158.55,1.5031]
[1749742551160,32.30477271,158.61,158.55,1.5031]
[1749742551363,57.80733799,158.58,158.55,1.5031]
[1749742551863,31.80733799,158.57,158.54,26.66]
[1749742552255,38.11477462,158.55,158.51,1.5584]
[1749742552545,6.30743663,158.55,158.51,33.36573799]
[1749742552743,38.11424275,158.56,158.52,31.80733799]
[1749742552954,6.30690476,158.56,158.52,31.80733799]
[1749742554041,6.30596544,158.58,158.55,31.80733799]
[1749742554352,6.30596544,158.58,158.54,31.80733799]
[1749742554932,31.80733799,158.57,158.51,28.2184]
[1749742555146,31.80733799,158.57,158.53,31.80733799]
[1749742556556,6.30676084,158.56,158.53,31.80733799]
[1749742557453,6.30596544,158.58,158.53,31.80733799]
[1749742557640,38.11330343,158.58,158.53,31.80733799]
[1749742557966,6.30596544,158.58,158.54,31.80733799]
[1749742558143,181.40569629,158.59,158.55,58.46733799]
[1749742558347,149.1,158.59,158.56,31.80733799]
[1749742558560,149.1,158.59,158.57,58.46733799]
[1749742558731,31.80733799,158.63,158.58,31.80733799]
[1749742559060,31.80733799,158.63,158.59,26.66]
[1749742559436,26.0,158.63,158.59,26.66]
[1749742559636,32.30406435,158.63,158.59,28.2636]
[1749742559844,31.80733799,158.62,158.59,28.2636]
[1749742560256,6.30406435,158.63,158.59,60.07093799]
[1749742561467,6.30406435,158.63,158.6,31.80733799]
[1749742562073,26.0,158.64,158.61,31.80733799]
[1749742562246,26.0,158.64,158.61,58.44733799]
[1749742562645,6.30326882,158.65,158.61,58.44733799]